[Event "44th Chess Olympiad Open 2022"]
[Site "Chennai"]
[Date "2022.08.03"]
[Round "6.28"]
[White "Gundavaa, Bayarsaikhan"]
[Black "Hadj Kholti, Yasser"]
[Result "1-0"]
[WhiteElo "2503"]
[BlackElo "1871"]
[Annotator "TA"]
[PlyCount "131"]
[EventDate "2022.??.??"]
[TimeControl "60"]

{[%evp 16,131,22,8,29,15,27,0,26,6,13,7,12,6,18,18,19,19,24,25,15,18,16,12,15,
12,7,0,0,0,4,0,0,2,9,10,20,19,43,50,50,50,78,82,46,10,10,10,13,10,17,28,81,83,
247,247,247,247,247,244,240,240,258,252,265,265,255,255,275,267,272,266,293,
289,336,336,329,322,323,306,466,0,307,279,299,292,308,306,298,291,414,316,557,
553,539,534,770,770,740,691,852,823,867,870,820,726,711,670,1721,1595,12014,
29950,5165,4137,29972,29973,29972,29945]} 1. e4 {[%emt 0:00:02]} c5 {[%emt 0:
00:00]} 2. Nf3 {[%emt 0:00:05]} Nc6 {[%emt 0:00:05]} 3. Bb5 {[%emt 0:00:26]} e6
{[%emt 0:00:24]} 4. O-O {[%emt 0:05:15]} Nge7 {[%emt 0:00:06]} 5. Re1 {[%emt 0:
00:00]} a6 {[%emt 0:02:54]} 6. Bf1 {[%emt 0:00:22]} d5 {[%emt 0:00:23]} 7. exd5
{[%emt 0:02:50]} Nxd5 {[%emt 0:00:36]} 8. d4 {[%emt 0:01:22]} Nf6 {[%emt 0:00:
00]} 9. Be3 {[%emt 0:03:15]} Be7 {[%emt 0:05:35] B30: Sicilian: 2...Nc6 3 Bb5,
lines without ...g6.} 10. c4 {[%emt 0:13:05]} cxd4 {[%emt 0:07:24]} (10... Ng4
{looks sharper.} 11. d5 Nxe3 12. Rxe3 Nd4) 11. Nxd4 {[%emt 0:00:07]} Nxd4 {
[%emt 0:01:07] The position is equal.} 12. Qxd4 {[%emt 0:01:14]} Qxd4 {[%emt 0:
00:00]} 13. Bxd4 {[%emt 0:00:04]} Bd7 {[%emt 0:00:38]} 14. Nc3 {[%emt 0:01:20]}
Bc6 {[%emt 0:01:27]} 15. a3 {[%emt 0:02:04]} O-O {[%emt 0:11:23]} 16. b4 {
[%emt 0:01:58]} Rfd8 {[%emt 0:05:18]} 17. Rad1 {[%emt 0:14:02] [#]} Kf8 $146 {
[%emt 0:09:03]} ({Predecessor:} 17... a5 18. c5 axb4 19. axb4 Kf8 20. Be5 Rxd1
21. Rxd1 Ng4 22. Bg3 Ra3 23. Nb5 Rb3 {0-1 (29) Vorontsov,P (2150)-Bogdanovich,
S (2515) Mukachevo 2012}) 18. Bb6 {[%emt 0:04:08]} Rxd1 {[%emt 0:04:34]} 19.
Rxd1 {[%emt 0:00:03]} Ke8 {[%emt 0:07:26]} 20. f3 {[%emt 0:09:20]} Nd7 {
[%emt 0:08:16]} 21. Be3 {[%emt 0:00:39]} Bf6 {[%emt 0:02:56]} 22. Rc1 {[%emt 0:
00:00]} b6 {[%emt 0:06:26]} 23. Ne2 {[%emt 0:03:05]} Rc8 {[%emt 0:04:50]} 24.
Nd4 {[%emt 0:05:03]} Bb7 {[%emt 0:00:29]} 25. Nb3 {[%emt 0:02:09]} Bb2 {
[%emt 0:04:44]} 26. Rb1 {[%emt 0:04:31]} Bxa3 {[%emt 0:00:50]} 27. Na1 {
[%emt 0:05:22]} a5 $1 {[%emt 0:02:59]} 28. bxa5 {[%emt 0:00:22]} Bc5 {[%emt 0:
00:00]} 29. Bxc5 {[%emt 0:07:36]} Rxc5 {[%emt 0:01:05]} 30. axb6 {[%emt 0:00:
00] aiming for Nb3.} (30. Nb3 $5 {[%cal Rb3c5]} Rc6 31. Nd4 $11) 30... Rc6 {
[%emt 0:00:43]} 31. c5 {[%emt 0:00:37]} Rxc5 {[%emt 0:00:05]} 32. Nb3 {[%emt 0:
00:00]} Rd5 {[%emt 0:00:45]} 33. Bc4 {[%emt 0:01:30]} Rd6 {[%emt 0:02:44]} (
33... Rf5 $11 {remains equal.}) 34. Na5 $16 {[%emt 0:00:13]} Rxb6 {[%emt 0:00:
00]} (34... Bxf3 $16 {was necessary.} 35. gxf3 Nxb6) 35. Rxb6 $18 {[%emt 0:00:
00] [#] Remove Defender} Nxb6 $16 {[%emt 0:00:04] Endgame KBN-KBN} 36. Bb5+ {
[%emt 0:00:04]} Ke7 {[%emt 0:00:35]} 37. Nxb7 {[%emt 0:00:00]} Nd5 {[%emt 0:00:
23]} 38. Nc5 {[%emt 0:00:21]} Nc7 {[%emt 0:01:12]} 39. Bd3 {[%emt 0:00:16]} h6
{[%emt 0:00:24]} 40. Kf2 {[%emt 0:00:04]} Nd5 {[%emt 0:00:00]} 41. Be4 {
[%emt 0:30:30]} Nf6 {[%emt 0:30:15]} 42. Ke3 {[%emt 0:00:26]} Ne8 {[%emt 0:00:
36]} 43. Nd3 {[%emt 0:01:58]} Nd6 {[%emt 0:00:46]} 44. Ne5 {[%emt 0:00:11]} Ne8
{[%emt 0:00:00]} 45. Kd4 {[%emt 0:00:00]} Nf6 {[%emt 0:00:00]} 46. Kc5 {
[%emt 0:00:00]} Ne8 {[%emt 0:00:00]} 47. Bc6 {[%emt 0:00:00]} Nd6 {[%emt 0:03:
51]} (47... Nf6 $142 48. g3 g6) 48. Be4 {[%emt 0:00:00]} Ne8 $1 {[%emt 0:00:00]
} 49. Kc6 {[%emt 0:00:00]} Nf6 {[%emt 0:00:00]} 50. Nc4 {[%emt 0:00:00]} Nd7 {
[%emt 0:00:00]} 51. Kc7 {[%emt 0:00:00]} Nc5 {[%emt 0:00:00]} 52. Ne5 {[%emt 0:
00:00] [#] And now Bc2 would win.} Nb3 {[%emt 0:00:00]} (52... Na4 {is a
better defense.} 53. Bc2 Nc3 54. Nc6+ Ke8) 53. Nc6+ {[%emt 0:00:00]} Kf6 $2 {
[%emt 0:00:00]} (53... Ke8 {might work better.} 54. Kd6 Kf8) 54. Kd6 $18 {
[%emt 0:00:00]} h5 {[%emt 0:00:00]} 55. Ne5 {[%emt 0:00:00]} Nc1 {[%emt 0:00:
00]} 56. f4 {[%emt 0:00:00][%cal Re5d7]} g6 {[%emt 0:00:00]} 57. Bd3 {[%emt 0:
00:00]} Nb3 {[%emt 0:00:00]} 58. Nf3 {[%emt 0:00:00]} Nc1 {[%emt 0:00:00]} 59.
Bc4 {[%emt 0:04:30]} Kf5 {[%emt 0:00:00]} 60. Ng5 {[%emt 0:01:01]} Kxf4 {
[%emt 0:00:00]} 61. Nxf7 {[%emt 0:00:14]} Ke3 {[%emt 0:00:00]} 62. Ke5 {
[%emt 0:02:23] Strongly threatening h4.} Kf2 {[%emt 0:00:00]} 63. Kf4 {[%emt 0:
00:00]} h4 {[%emt 0:00:00]} 64. h3 {[%emt 0:01:00]} Kxg2 {[%emt 0:00:00]} 65.
Ng5 {[%emt 0:00:11]} Kh2 {[%emt 0:00:00]} 66. Ke4 {[%emt 0:01:41] Weighted
Error Value: White=0.13 (very precise) /Black=0.26 (precise)} 1-0

[Event "44th Chess Olympiad Open 2022"]
[Site "Chennai"]
[Date "2022.08.03"]
[Round "6.28"]
[White "Choukri, Adel"]
[Black "Amartuvshin, Ganzorig"]
[Result "0-1"]
[WhiteElo "2306"]
[BlackElo "2409"]
[Annotator "TA"]
[PlyCount "56"]
[EventDate "2022.??.??"]
[TimeControl "60"]

{[%evp 15,56,19,19,0,5,-16,0,3,9,0,0,7,9,-12,-24,-74,-79,-110,-106,-173,-175,
-168,-159,-155,-143,-132,-134,-116,-44,-131,-49,-245,-16,-100,-16,-981,-952,
-1487,-1464,-1462,-1429,-29990,-2780]} 1. d4 {[%emt 0:00:03]} Nf6 {[%emt 0:00:
00]} 2. c4 {[%emt 0:00:08]} e6 {[%emt 0:00:05]} 3. Nf3 {[%emt 0:00:25]} Bb4+ {
[%emt 0:00:14]} 4. Bd2 {[%emt 0:00:00]} Qe7 {[%emt 0:00:38]} 5. a3 {[%emt 0:00:
00]} Bxd2+ {[%emt 0:00:16]} 6. Qxd2 {[%emt 0:00:15]} O-O {[%emt 0:00:48]} 7.
Nc3 {[%emt 0:02:36]} d6 {[%emt 0:01:03] 7...d5 is vanishing.} 8. e4 {[%emt 0:
00:00]} e5 {[%emt 0:17:23]} 9. d5 {[%emt 0:00:00] E11: Bogo-Indian.} (9. Qe3 {
is more complex.} Ng4 10. Nd5 Qd8 11. Qg5) 9... a5 {[%emt 0:00:31]} 10. b3 {
[%emt 0:00:00]} Na6 {[%emt 0:04:33]} 11. Bd3 {[%emt 0:00:00] The position is
equal.} Bg4 {[%emt 0:00:27] [#]} 12. Ng1 $146 {[%emt 0:00:00]} ({Predecessor:} 
12. Qe3 Nc5 13. Bc2 Nh5 14. O-O Nf4 15. b4 Nd7 16. Nb5 c6 17. dxc6 bxc6 18. Nc3
{0-1 (32) Galeziewski,O (1633)-Kossowski,P (1737) Lazy 2022}) 12... c6 {
[%emt 0:04:31]} 13. f3 {[%emt 0:00:00]} Bd7 {[%emt 0:09:05]} 14. Bc2 {[%emt 0:
00:00]} cxd5 {[%emt 0:00:00]} 15. Nxd5 {[%emt 0:08:55]} (15. exd5 $11 {keeps
the balance.} Rfc8 16. a4) 15... Nxd5 $17 {[%emt 0:00:00]} 16. exd5 {[%emt 0:
00:00]} a4 {[%emt 0:00:00]} 17. Qd3 {[%emt 0:07:01]} (17. b4 $17) 17... f5 $19
{[%emt 0:13:40][%cal Ye5e4,Yf7f5,Yf5e4] White must now prevent ...e4! Active
counter play!} 18. b4 {[%emt 0:06:56]} e4 {[%emt 0:00:10]} 19. fxe4 {[%emt 0:
00:18]} fxe4 {[%emt 0:16:07]} 20. Qd4 {[%emt 0:00:40]} (20. Qxe4 $2 Qxe4+ 21.
Bxe4 Rae8 $19) 20... Qg5 $36 {[%emt 0:01:24] Keeping White busy.} 21. Ne2 {
[%emt 0:06:46]} (21. Qxe4 $2 Rae8 22. Nf3 Rxe4+ $19) 21... Rae8 {[%emt 0:02:44]
} (21... Qxg2 $2 22. Rg1 Qxg1+ 23. Qxg1 $18) (21... b5 $17 {...Rac8 is the
strong threat.} 22. h4 (22. Qxe4 $2 Bf5 $19) (22. cxb5 $2 Bxb5 23. Bxe4 Rae8
$19) 22... Qh6 23. Bxe4 bxc4) 22. h4 {[%emt 0:04:42]} (22. Rf1 $1 $15) 22...
Qg4 {[%emt 0:01:41]} (22... Qxg2 $2 23. Rg1 Qxg1+ 24. Nxg1 $18) ({Black should
play} 22... Qh5 $1 $17 23. Qe3 Rc8 24. Bxe4 (24. Qxe4 $2 Bf5 $19) 24... Qe5 25.
Bxh7+ (25. Rc1 $2 Bf5 $19) 25... Kxh7 26. Qxe5 dxe5) 23. h5 $2 {[%emt 0:01:02]
[#]} (23. Rh3 $15 e3 24. Rg3 Qxd4 25. Nxd4) 23... h6 $2 {[%emt 0:00:04]} (23...
Qxg2 $2 24. Rg1 Rf2 25. Qxf2 $18) (23... Qg5 $1 $19 {Strongly threatening ...
Bg4.} 24. h6 gxh6) 24. Rh3 $1 $11 {[%emt 0:08:06] [#]} Re5 {[%emt 0:06:07]} ({
Much less strong is} 24... Qxg2 25. Rg3 Qh1+ 26. Kd2 (26. Rg1 Qh4+ 27. Kd2 Re7
$11) 26... e3+ 27. Rxe3 Qxh5 28. Rg1 $16) (24... Qg5 $1 $17 25. Rg3 Bg4) 25.
Qe3 {[%emt 0:00:07]} (25. Re3 $11) 25... Qxg2 $19 {[%emt 0:01:03]} 26. Rg3 {
[%emt 0:09:03]} Qf1+ {[%emt 0:00:17]} 27. Kd2 {[%emt 0:00:05]} Qxa1 {[%emt 0:
00:24]} 28. Rg6 {[%emt 0:00:22]} Rf3 {[%emt 0:01:27] Weighted Error Value:
White=1.08/Black=0.31} (28... Rf1 $142 29. Qxe4 Rxe4 30. Bxe4 Qb2+ 31. Ke3
Qxa3+ 32. Kd2 Qxb4+ 33. Ke3 a3 34. Rg3 a2 35. Rf3 a1=Q 36. Rxf1 Qxf1 37. Bc2
Bg4 38. Bh7+ Kxh7 39. Ng3 Qf3+ 40. Kd4 Qd2#) 0-1

[Event "44th Chess Olympiad Open 2022"]
[Site "Chennai"]
[Date "2022.08.03"]
[Round "6.28"]
[White "Zrikem, Nassim"]
[Black "Gan-Erdene, Sugar"]
[Result "0-1"]
[WhiteElo "2075"]
[BlackElo "2428"]
[Annotator "TA"]
[PlyCount "80"]
[EventDate "2022.??.??"]
[TimeControl "60"]

{[%evp 18,80,2,0,26,-8,4,-24,-18,-18,-15,-8,-7,-12,0,0,0,-116,-119,-110,-116,
-110,-52,-46,-30,-42,-34,-31,-37,-201,-125,-149,-141,-137,-135,-135,-106,-106,
-35,-184,-99,-337,-323,-408,-371,-378,-399,-364,-128,-269,-262,-422,-448,-578,
-577,-573,-559,-556,-504,-618,-556,-12843,-12843,-12844,-12844]} 1. d4 {
[%emt 0:00:21]} Nf6 {[%emt 0:00:08]} 2. Nf3 {[%emt 0:00:13]} g6 {[%emt 0:00:12]
} 3. Bg5 {[%emt 0:00:48]} Bg7 {[%emt 0:00:19]} 4. Nbd2 {[%emt 0:00:11]} O-O {
[%emt 0:00:37]} 5. c3 {[%emt 0:00:08]} d6 {[%emt 0:00:53]} 6. e4 {[%emt 0:00:
00]} c5 {[%emt 0:00:23]} 7. dxc5 {[%emt 0:00:21]} dxc5 {[%emt 0:00:16]} 8. Bc4
{[%emt 0:00:47]} Nc6 {[%emt 0:01:20]} 9. O-O {[%emt 0:06:40]} Qc7 {[%emt 0:00:
00]} 10. Re1 {[%emt 0:02:09]} Nh5 {[%emt 0:07:14][%cal Yf6h5,Yh5f4,Yf4e2] A48:
1 d4 Nf6 2 Nf3 g6: Torre, London and Colle Systems.} 11. Nf1 {[%emt 0:00:00]}
h6 {[%emt 0:16:36]} 12. Bh4 {[%emt 0:08:51]} Rd8 {[%emt 0:05:28] Black has an
edge.} 13. Qc2 {[%emt 0:07:08]} Bg4 {[%emt 0:04:30]} 14. Be2 {[%emt 0:00:00] 
[#]} Nf4 $146 {[%emt 0:21:24]} ({Predecessor:} 14... Qf4 15. Bg3 Nxg3 16. hxg3
Qc7 17. Ne3 Bd7 18. Nd5 Qb8 19. Bb5 Kf8 20. a4 Be8 {½-½ (39) Dogan, N (2214)
-Asgari,M (2248) Ordu 2019}) 15. Ne3 {[%emt 0:09:41]} Nxe2+ {[%emt 0:00:00]}
16. Qxe2 {[%emt 0:05:27]} Be6 {[%emt 0:01:44]} 17. Nd5 {[%emt 0:28:19]} (17.
Bg3 $11 {remains equal.} Qa5 18. Nd2) 17... Bxd5 $17 {[%emt 0:09:13]} 18. exd5
{[%emt 0:00:00]} Rxd5 {[%emt 0:01:54]} 19. Bxe7 {[%emt 0:05:26] [#]} g5 {
[%emt 0:08:20] Inhibits Bh4.} (19... Nxe7 $6 20. Qxe7 Qxe7 21. Rxe7 $11) (19...
Ne5 $1 $17 20. Bh4 Nd3) 20. Qe4 $15 {[%emt 0:12:53]} Nxe7 {[%emt 0:06:16]} (
20... Qd7 {with more complications.} 21. c4 Rd3 22. Bxc5 Rd8) 21. Qxe7 {
[%emt 0:00:00]} Qxe7 {[%emt 0:00:28]} 22. Rxe7 {[%emt 0:00:00]} g4 {[%emt 0:00:
00]} 23. c4 $2 {[%emt 0:00:00] [#]} (23. Ne1 $15) 23... Rd6 {[%emt 0:01:07]} (
23... Bxb2 24. Rb1 Rd3 25. Rxb2 $11) 24. Nh4 {[%emt 0:00:00]} (24. Ne5 $2 Bf6
25. Nxf7 Bxe7 $19) 24... Bxb2 {[%emt 0:02:02]} ({Weaker is} 24... Bf6 25. Re4
$17) 25. Rb1 {[%emt 0:00:03]} Bf6 $36 {[%emt 0:00:34][%csl Ye7,Yh4] Black is
in control.} 26. Re4 {[%emt 0:00:00]} h5 {[%emt 0:03:54]} ({Stronger than} 
26... Bxh4 27. Rxg4+ Bg5 28. h4 $15) 27. Nf5 {[%emt 0:00:00]} Rd2 {[%emt 0:00:
44]} ({Black should play} 27... Rb6 $17 28. Rd1 Kh7) 28. Ng3 {[%emt 0:00:00]} (
{White should try} 28. h3 $15) 28... Bd4 {[%emt 0:00:26]} (28... Rxa2 $19 29.
Nxh5 Bd4) 29. Rf1 $2 {[%emt 0:00:00]} (29. Re2 $17 Rxe2 30. Nxe2) 29... Rxa2
$19 {[%emt 0:00:40]} 30. Nxh5 {[%emt 0:00:00]} f5 {[%emt 0:00:00]} 31. Rf4 {
[%emt 0:00:00]} Rf8 {[%emt 0:01:07]} 32. Ng3 {[%emt 0:00:00]} Ra1 $2 {[%emt 0:
00:30]} (32... a5 $19 {and Black stays clearly on top. Hoping for . ..a4.} 33.
h3 Be5 34. Rxf5 Rxf5 35. Nxf5 gxh3 36. gxh3 a4) 33. Rxa1 {[%emt 0:00:00]} (33.
Nxf5 $17 {only move.} Rxf1+ 34. Kxf1) 33... Bxa1 {[%emt 0:00:05]} 34. Nxf5 $2
$17 {[%emt 0:00:00] Endgame KRB-KRN} (34. Rxf5 Rxf5 35. Nxf5) 34... Kh7 $19 {
[%emt 0:00:10] aiming for ...Be5. Black is clearly winning.} 35. h3 {[%emt 0:
00:00]} Be5 {[%emt 0:00:39]} 36. Re4 {[%emt 0:00:00]} Rxf5 {[%emt 0:00:06]} 37.
hxg4 {[%emt 0:00:00]} Rg5 {[%emt 0:00:05]} 38. f4 {[%emt 0:00:00]} Bd4+ {
[%emt 0:00:11]} 39. Rxd4 {[%emt 0:00:00]} cxd4 {[%emt 0:00:00]} 40. fxg5 {
[%emt 0:00:00]} a5 {[%emt 0:00:05] Weighted Error Value: White=0.91/Black=0.24
(precise)} 0-1

[Event "44th Chess Olympiad Open 2022"]
[Site "Chennai"]
[Date "2022.08.03"]
[Round "6.29"]
[White "Priasmoro, Novendra"]
[Black "Cabezas Solano, David Alejandro"]
[Result "1-0"]
[WhiteElo "2494"]
[BlackElo "2196"]
[Annotator "TA"]
[PlyCount "97"]
[EventDate "2022.??.??"]
[TimeControl "60"]

{[%evp 20,97,26,15,34,21,24,19,17,19,27,22,28,33,31,25,33,47,49,-3,-10,-3,-3,
-20,-20,-15,0,0,0,0,21,15,23,6,37,37,30,33,32,18,16,5,33,0,132,33,136,136,210,
211,756,741,741,734,734,275,277,275,261,264,565,461,459,458,436,389,434,463,
441,440,517,533,614,619,620,584,819,731,633,530]} 1. e4 {[%emt 0:00:04]} c5 {
[%emt 0:00:04]} 2. Nf3 {[%emt 0:00:06]} Nc6 {[%emt 0:00:04]} 3. Bb5 {[%emt 0:
00:00]} g6 {[%emt 0:00:04]} 4. c3 {[%emt 0:00:14]} Nf6 {[%emt 0:00:39]} 5. Qe2
{[%emt 0:00:42]} Bg7 {[%emt 0:00:46]} 6. d4 {[%emt 0:05:32]} cxd4 {[%emt 0:00:
00]} 7. cxd4 {[%emt 0:00:08]} d6 {[%emt 0:00:56]} 8. Nc3 {[%emt 0:13:46]} a6 {
[%emt 0:03:40]} 9. Bxc6+ {[%emt 0:01:49]} bxc6 {[%emt 0:00:01]} 10. O-O {
[%emt 0:00:24]} O-O {[%emt 0:00:27]} 11. h3 {[%emt 0:00:39]} a5 {[%emt 0:01:05]
B31: Sicilian: 2...Nc6 3 Bb5 g6.} 12. Re1 {[%emt 0:01:13]} Ba6 {[%emt 0:03:53]}
13. Qc2 {[%emt 0:00:10] [#]} Nd7 $146 {[%emt 0:03:43] The position is equal.} (
{Predecessor:} 13... Rc8 14. Bf4 Qb6 15. Rad1 Rfd8 16. Bg5 c5 17. d5 Qb7 18.
Qd2 Rb8 19. e5 dxe5 20. Nxe5 {1-0 (51) Reeh,O (2446)-Teske,H (2518) Germany
2003}) 14. Be3 {[%emt 0:01:07]} Rc8 {[%emt 0:03:44]} 15. Rad1 {[%emt 0:00:55]}
Qc7 {[%emt 0:02:08]} 16. Qd2 {[%emt 0:03:55]} Rfe8 {[%emt 0:06:55]} 17. Bh6 {
[%emt 0:05:45]} c5 {[%emt 0:11:10]} 18. Nd5 {[%emt 0:06:38]} Qd8 {[%emt 0:00:
00]} 19. Qf4 {[%emt 0:22:30]} (19. Bxg7 $14 Kxg7 20. Nf4) 19... e6 $11 {
[%emt 0:15:48]} 20. Bxg7 {[%emt 0:04:45]} (20. Ng5 f6 21. Bxg7 Kxg7 22. Nxf6
Qxf6 $17) 20... Kxg7 {[%emt 0:00:08]} 21. Ne3 {[%emt 0:01:56] Hoping for dxc5.
Pair of Knights!} cxd4 {[%emt 0:11:20]} 22. Nxd4 {[%emt 0:00:07]} (22. Rxd4 e5
23. Nf5+ gxf5 $17) (22. Ng4 $2 h5 23. Qh6+ Kg8 $17) 22... Ne5 {[%emt 0:00:56]}
({Don't do} 22... e5 23. Ndf5+ $1 gxf5 24. Nxf5+ (24. Qg3+ Kh8 $15) 24... Kh8
25. Qf3 $16 (25. Qh6 Qf6 $14)) 23. Ng4 {[%emt 0:02:43]} Nxg4 {[%emt 0:04:39]}
24. Qxg4 {[%emt 0:00:04]} Qf6 {[%emt 0:00:53]} 25. Qg3 {[%emt 0:00:25]} Red8 {
[%emt 0:03:29]} 26. Rd2 {[%emt 0:05:43]} d5 {[%emt 0:02:06]} 27. e5 {[%emt 0:
00:00]} Qe7 {[%emt 0:00:02]} 28. h4 {[%emt 0:03:08]} h5 {[%emt 0:00:47]} 29.
Qf4 {[%emt 0:00:58]} Rc4 {[%emt 0:02:35]} 30. Re3 {[%emt 0:02:08]} Rdc8 {
[%emt 0:02:22]} 31. Kh2 {[%emt 0:01:04]} Rc1 {[%emt 0:03:12]} (31... a4 $11 {
keeps the balance.}) 32. Rb3 {[%emt 0:06:53] White leaves nothing to chance
now.} (32. Ra3 $16) 32... Re1 {[%emt 0:01:08] [#]} (32... Bf1 $14) 33. Rb6 $1
$16 {[%emt 0:00:26]} Bc4 {[%emt 0:04:15]} (33... Ra8 $16) 34. Nc6 $18 {[%emt 0:
00:00] Dancing on a razor blade.} Qc7 {[%emt 0:01:13]} (34... Rxc6 35. Rxc6
Bxa2) 35. Qf6+ {[%emt 0:00:03]} Kh7 {[%emt 0:01:33]} 36. Ne7 {[%emt 0:00:36]}
Rf8 {[%emt 0:01:09]} 37. Rd6 $2 {[%emt 0:00:38]} (37. Rxe6 Bb5 38. Rxd5) 37...
Rxe5 {[%emt 0:03:23]} 38. Qxe5 {[%emt 0:00:20]} Qxe7 {[%emt 0:00:11]} 39. b3 {
[%emt 0:00:32]} Qxh4+ {[%emt 0:00:44]} (39... Bb5 40. Kg1 Re8) 40. Kg1 {
[%emt 0:00:04] Rd4 is the strong threat.} Bb5 {[%emt 0:00:12]} 41. Rd4 {
[%emt 0:30:22]} Qe7 {[%emt 0:30:53]} 42. R4xd5 {[%emt 0:03:18]} Rc8 {[%emt 0:
00:00]} 43. Rc5 {[%emt 0:00:00] Against Rc2. White is clearly winning.} (43.
Rxb5 {leads to mate.} Rc1+) 43... Rxc5 {[%emt 0:00:00]} 44. Qxc5 {[%emt 0:00:
00] KQR-KQB} Be2 {[%emt 0:00:00]} 45. Qd4 {[%emt 0:00:00] Strongly threatening
Rd7.} e5 {[%emt 0:00:00]} 46. Rd7 {[%emt 0:00:00]} Qf6 {[%emt 0:00:00]} 47. Qd6
{[%emt 0:00:00]} Qf5 {[%emt 0:00:00]} 48. Re7 {[%emt 0:00:00]} e4 {[%emt 0:00:
00]} 49. Qe5 {[%emt 0:00:00] Weighted Error Value: White=0.28 (precise) /
Black=0.34} 1-0

[Event "44th Chess Olympiad Open 2022"]
[Site "Chennai"]
[Date "2022.08.03"]
[Round "6.29"]
[White "Kurniawan, Muhamad Agus"]
[Black "Chinchilla Miranda, Eugenio"]
[Result "1-0"]
[WhiteElo "2328"]
[BlackElo "2206"]
[Annotator "TA"]
[PlyCount "53"]
[EventDate "2022.??.??"]
[TimeControl "60"]

{[%evp 23,53,22,20,14,18,21,30,34,77,67,72,57,139,129,206,94,75,85,110,74,162,
172,333,304,433,296,587,568,715,702,674,652]} 1. e4 {[%emt 0:00:02]} e5 {
[%emt 0:00:07]} 2. Nf3 {[%emt 0:00:07]} Nc6 {[%emt 0:00:06]} 3. Bb5 {[%emt 0:
00:00]} a6 {[%emt 0:00:10]} 4. Ba4 {[%emt 0:00:03]} Nf6 {[%emt 0:00:09]} 5. O-O
{[%emt 0:00:03]} Be7 {[%emt 0:00:09]} 6. Re1 {[%emt 0:00:07]} b5 {[%emt 0:00:
00]} 7. Bb3 {[%emt 0:00:01]} d6 {[%emt 0:00:11]} 8. c3 {[%emt 0:00:10]} O-O {
[%emt 0:00:17]} 9. h3 {[%emt 0:00:02]} Nb8 {[%emt 0:00:13]} 10. d4 {[%emt 0:00:
00]} Nbd7 {[%emt 0:00:09]} 11. Nbd2 {[%emt 0:00:02]} Bb7 {[%emt 0:00:12]} 12.
Bc2 {[%emt 0:00:09]} c5 {[%emt 0:00:18]} 13. a4 {[%emt 0:05:15] C95: Closed
Ruy Lopez: Breyer Variation with 10 d4.} cxd4 {[%emt 0:24:41]} (13... Qc7 {
feels hotter.} 14. d5 c4 15. Nf1 Rfc8) 14. cxd4 {[%emt 0:00:00]} bxa4 {[%emt 0:
00:00]} 15. Rxa4 {[%emt 0:18:20] [#] White has an edge.} exd4 $146 {[%emt 0:00:
00]} ({Predecessor:} 15... Qc7 16. Ra3 exd4 17. Nxd4 d5 18. Rc3 Qb6 19. Nf5 Bc5
20. Rf1 dxe4 21. Rg3 g6 {1-0 (63) Himanshu,S (2498)-Perez Mitjans,O (2407)
Barbera del Valles 2017}) 16. Rxd4 {[%emt 0:00:00]} Qc7 {[%emt 0:05:24]} 17.
Nc4 {[%emt 0:00:00] Strongly threatening Bf4.} Rac8 {[%emt 0:03:48]} (17... Nc5
$14) 18. Bf4 $16 {[%emt 0:02:21]} Nb6 {[%emt 0:15:10] [#]} (18... Ne5 $16 19.
Nfxe5 dxe5 20. Bxe5 Qc6) 19. Bb3 {[%emt 0:21:23]} (19. Bxd6 Bxd6 20. Nxd6 Qxc2)
(19. Ne3 $1 $18 {[%cal Re3f5] and White stays clearly on top.}) 19... Nxc4 {
[%emt 0:01:01]} 20. Bxc4 {[%emt 0:01:09]} h6 {[%emt 0:04:24]} 21. b3 {[%emt 0:
00:00] aiming for Nh4. White is much more active.} Rcd8 {[%emt 0:04:48]} (21...
Qa5 $16) 22. Nh4 $18 {[%emt 0:01:29] And now Nf5 would win.} Rfe8 $2 {[%emt 0:
00:00] [#]} (22... g5) 23. Nf5 {[%emt 0:01:08]} Qa5 {[%emt 0:02:43]} (23... Bf8
$142 24. Bxd6 (24. Nxd6 Bxd6 25. Bxd6 Qc6 $18) 24... Bxd6 25. Nxd6 Re7 26.
Bxf7+ Rxf7) 24. Bxd6 {[%emt 0:07:18]} Nxe4 $2 {[%emt 0:01:59]} (24... Bf8 25.
e5 Bc8) 25. Rexe4 {[%emt 0:07:17] White is clearly winning.} ({Less strong is} 
25. Bxe7 Qxf5 26. f3 (26. Rxd8 Qxf2+ 27. Kh2 Qg3+ 28. Kg1 Qf2+ 29. Kh2 Qg3+ 30.
Kg1 Qf2+ $11) 26... Rxd4 27. Qxd4 Nf6 $16) 25... Bxe4 {[%emt 0:03:27]} 26.
Nxe7+ {[%emt 0:00:36]} Rxe7 {[%emt 0:01:35]} 27. Bxe7 {[%emt 0:00:15] Weighted
Error Value: White=0.31/Black=0.71} 1-0